bitfinex/quotes_SOLUSD_20220227
["timestamp","ask_amount","ask_price","bid_price","bid_amount"]
[1645950877282,1.39399691,89.138,89.023,112.4]
[1645950877477,1.39399691,89.138,89.024,2.66904821]
[1645950877680,45.52659952,89.137,89.024,2.66904821]
[1645950877880,1.6125365,89.136,89.026,2.87657705]
[1645950878079,1.6125365,89.136,89.04,16.2]
[1645950878279,1.6125365,89.136,89.041,23.9945]
[1645950878488,1.6125365,89.136,89.043,112.4]
[1645950878684,45.52659952,89.137,89.043,112.4]
[1645950878685,46.91096888,89.137,89.044,2.51386515]
[1645950879097,46.91096888,89.137,89.044,5.26065436]
[1645950879297,46.91096888,89.137,89.045,2.74678921]
[1645950879497,46.91096888,89.137,89.046,22.9591]
[1645950879698,1.67167421,89.136,89.047,2.99389742]
[1645950886802,45.52659952,89.137,89.047,2.99389742]
[1645950887003,45.52659952,89.137,89.05,16.2]
[1645950887303,45.52659952,89.137,89.051,2.34782851]
[1645950887706,45.52659952,89.137,89.052,137.3398]
[1645950887903,45.52659952,89.137,89.053,2.76984828]
[1645950889306,45.52659952,89.137,89.054,2.74678921]
[1645950889506,45.52659952,89.137,89.055,4.489]
[1645950889706,45.52659952,89.137,89.061,112.4]
[1645950889906,45.52659952,89.137,89.062,2.66412264]
[1645950890108,45.52659952,89.137,89.063,23.9332]
[1645950890309,45.52659952,89.137,89.064,2.49602634]
[1645950890807,45.52659952,89.137,89.063,23.9332]
[1645950891209,1.62479492,89.136,89.063,23.9332]
[1645950901117,1.62479492,89.136,89.047,2.47623329]
[1645950901318,1.62479492,89.136,89.046,22.9591]
[1645950901319,1.62479492,89.136,89.048,24.4382]
[1645950901521,7.0,89.134,89.048,24.4382]
[1645950901718,7.0,89.134,89.021,23.4196]
[1645950901719,16.2,89.13,89.021,23.4196]
[1645950901919,6.3624541,89.129,89.022,22.699]
[1645950902118,6.3624541,89.129,89.023,58.88143359]
[1645950902318,50.87043089,89.118,89.023,58.88143359]
[1645950902518,1.38284402,89.117,89.023,58.88143359]
[1645950902718,16.8516,89.11,89.024,2.34213276]
[1645950902920,1.75388763,89.109,89.024,2.34213276]
[1645950903221,1.75388763,89.109,89.023,58.88143359]
[1645950903418,1.75388763,89.109,89.022,22.699]
[1645950905324,8.75388763,89.109,89.022,22.699]
[1645950905622,1.75388763,89.109,89.022,22.699]
[1645950906822,24.3576,89.117,89.023,2.90591669]
[1645950907223,7.0,89.116,89.023,2.90591669]
[1645950908224,8.50486484,89.116,89.023,2.90591669]
[1645950912025,1.50486484,89.116,89.023,2.90591669]
[1645950912227,8.50486484,89.116,89.023,2.90591669]
[1645950912526,1.50486484,89.116,89.023,2.90591669]
[1645950912725,7.0,89.114,89.023,2.90591669]
[1645950913126,7.0,89.111,89.023,2.90591669]
[1645950913325,7.0,89.111,89.022,22.699]
[1645950913530,16.8522,89.11,89.022,22.699]
[1645950913728,1.61985691,89.109,89.022,22.699]
[1645950914727,8.61985691,89.109,89.022,22.699]
[1645950915729,1.61540278,89.099,89.002,4.49]
[1645950915929,16.2,89.09,89.002,4.49]
[1645950916230,5.84698112,89.089,89.002,4.49]
[1645950916428,55.41170336,89.083,89.002,4.49]
[1645950916629,54.88596721,89.069,89.002,4.49]
[1645950916830,53.24517459,89.069,89.002,4.49]
[1645950917028,1.38649329,89.068,89.002,4.49]
[1645950918028,24.66940965,89.067,89.002,4.49]
[1645950918228,6.18184118,89.066,89.002,4.49]
[1645950918428,6.18184118,89.066,88.977,23.7824]
[1645950918429,7.0,89.056,88.977,23.7824]
[1645950918628,58.74314758,89.039,88.977,23.7824]
[1645950918832,66.02314758,89.039,88.94,24.3107]
[1645950919032,1.3527422,89.038,88.941,2.28444548]
[1645950919231,25.62154477,89.038,88.941,2.28444548]
[1645950919431,3.2900719,89.037,88.941,2.28444548]
[1645950919631,1.84028362,89.036,88.941,2.28444548]
[1645950920030,10.55537837,89.036,88.941,2.28444548]
[1645950920431,16.8672,89.03,88.94,48.5112]
[1645950920631,1.7030167,89.029,88.94,48.5112]
[1645950920831,7.0,89.024,88.94,48.5112]
[1645950921031,1.7030167,89.029,88.94,48.5112]
[1645950921232,25.62154477,89.028,88.94,48.5112]
[1645950921435,1.7057709,89.027,88.94,48.5112]
[1645950921639,1.71022273,89.026,88.94,48.5112]
[1645950921931,50.39143129,89.025,88.94,48.5112]
[1645950922132,1.48528939,89.024,88.94,48.5112]
[1645950922332,16.2,89.02,88.94,48.5112]
[1645950922535,16.87,89.01,88.94,48.5112]
[1645950923136,46.33338648,89.009,88.94,48.5112]
[1645950923336,46.33338648,89.009,88.941,2.9887724]
[1645950924637,1.40784892,89.008,88.94,48.5112]
[1645950925039,9.36784892,89.008,88.94,48.5112]
[1645950925445,9.36784892,89.008,88.914,16.7273]
[1645950925446,16.8732,89.0,88.91,2.74678921]
[1645950925643,1.54692243,88.999,88.912,22.9032]
[1645950926042,19.88225322,88.998,88.912,22.9032]
[1645950926242,1.64498689,88.997,88.913,18.5543668]
[1645950926643,1.64498689,88.997,88.912,22.9032]
[1645950926644,1.64498689,88.997,88.912,25.74065518]
[1645950926843,1.64498689,88.997,88.913,3.0213389]
[1645950927044,1.64498689,88.997,88.912,22.9032]
[1645950927245,1.64498689,88.997,88.912,135.3032]
[1645950927443,1.64498689,88.997,88.915,112.4]
[1645950927643,1.64498689,88.997,88.916,55.66762306]
[1645950927860,1.64498689,88.997,88.916,58.41441227]
[1645950928061,1.64498689,88.997,88.917,2.74678921]
[1645950929663,1.64498689,88.997,88.916,55.66762306]
[1645950930765,16.01758689,89.0,88.916,55.66762306]
[1645950930966,1.59280129,88.999,88.916,55.66762306]
[1645950934469,1.59280129,88.999,88.916,72.24952306]
[1645950935470,1.59280129,88.999,88.916,16.5819]
[1645950936075,8.59280129,88.999,88.916,16.5819]
[1645950937581,8.59280129,88.999,88.917,50.64175938]
[1645950938380,1.59280129,88.999,88.917,50.64175938]
[1645950939484,1.59280129,88.999,88.915,17.0843]
[1645950941083,1.66033386,88.997,88.915,17.0843]
[1645950941285,1.66033386,88.997,88.912,22.9032]
[1645950941486,16.8749,88.99,88.912,22.9032]
[1645950941685,59.58563527,88.989,88.912,39.5994]
[1645950941987,1.3921436,88.988,88.912,39.5994]
[1645950942184,1.3921436,88.988,88.912,22.9032]
[1645950945587,16.8772,88.98,88.912,22.9032]
[1645950945786,16.8772,88.98,88.891,23.6644]
[1645950945787,5.89472103,88.979,88.891,23.6644]
[1645950945990,112.4,88.978,88.863,23.3374]
[1645950946188,30.56413068,88.979,88.863,23.3374]
[1645950946189,112.4,88.976,88.863,23.3374]
[1645950946387,7.0,88.966,88.863,23.3374]
[1645950946587,16.2,88.96,88.864,2.74678921]
[1645950946788,57.05275106,88.959,88.864,2.74678921]
[1645950946989,1.55892617,88.958,88.864,2.74678921]
[1645950947189,1.55892617,88.958,88.865,24.9253]
[1645950949089,16.8824,88.95,88.865,24.9253]
[1645950949291,1.77144758,88.949,88.865,24.9253]
[1645950949488,1.5332017,88.948,88.865,24.9253]
[1645950949890,1.67270524,88.947,88.865,24.9253]
[1645950950089,40.7086325,88.947,88.865,24.9253]
[1645950950290,59.13971402,88.945,88.865,24.9253]
[1645950950491,1.43549879,88.939,88.865,24.9253]
[1645950951899,8.43549879,88.939,88.865,24.9253]
[1645950952401,1.43549879,88.939,88.865,24.9253]
[1645950954616,1.5134221,88.929,88.865,24.9253]
[1645950955416,1.81071159,88.927,88.865,24.9253]
[1645950958920,46.74143062,88.928,88.866,2.9140678]
[1645950960123,16.8883,88.92,88.866,2.9140678]
[1645950960821,27.41619886,88.919,88.77,26.28129545]
[1645950961023,4.501,88.918,88.82,2.42126428]
[1645950961221,47.30636906,88.918,88.82,2.42126428]
[1645950961522,66.05162659,88.917,88.82,2.42126428]
[1645950961733,7.0,88.916,88.82,2.42126428]
[1645950961932,25.13595941,88.916,88.82,2.42126428]
[1645950962133,51.21804622,88.914,88.82,2.42126428]
[1645950962332,7.0,88.909,88.82,2.42126428]
[1645950962733,2.74678921,88.908,88.82,2.42126428]
[1645950964035,4.62310367,88.907,88.82,2.42126428]
[1645950964234,4.501,88.906,88.82,2.42126428]
[1645950964435,16.8921,88.9,88.82,2.42126428]
[1645950964635,16.2,88.89,88.82,2.42126428]
[1645950965138,4.501,88.889,88.82,2.42126428]
[1645950965334,57.30924471,88.888,88.82,2.42126428]
[1645950965537,16.8966,88.87,88.82,2.42126428]
[1645950966436,44.30137418,88.869,88.776,48.9305908]
[1645950966636,44.30137418,88.869,88.777,2.60050699]
[1645950968739,51.30137418,88.869,88.777,2.60050699]
[1645950968938,7.0,88.866,88.777,2.60050699]
[1645950971642,44.30137418,88.869,88.778,2.74678921]
[1645950971845,44.30137418,88.869,88.778,5.67956717]
[1645950972243,44.30137418,88.869,88.779,112.4]
[1645950972444,44.30137418,88.869,88.78,19.28762381]
[1645950972644,44.30137418,88.869,88.781,145.69133548]
[1645950972947,44.30137418,88.869,88.782,2.28714579]
[1645950973344,4.503,88.902,88.784,2.29591115]
[1645950973549,4.502,88.949,88.784,2.29591115]
[1645950973745,7.52218207,88.934,88.79,202.47]
[1645950973947,4.501,88.933,88.801,114.97860745]
[1645950974145,7.24778921,88.933,88.804,2.43111271]
[1645950974347,54.39449067,88.932,88.806,2.51217521]
[1645950974545,57.14127988,88.932,88.821,112.4]
[1645950974844,2.74678921,88.931,88.824,33.3603959]
[1645950975046,7.52218207,88.931,88.826,2.29722989]
[1645950975244,2.74678921,88.931,88.826,2.29722989]
[1645950975447,2.74678921,88.93,88.826,2.29722989]
[1645950975646,24.40968207,88.93,88.826,2.29722989]
[1645950975944,2.74678921,88.929,88.826,2.29722989]
[1645950976546,4.5,88.928,88.826,2.29722989]
[1645950976945,2.74678921,88.927,88.826,2.29722989]
[1645950978650,4.77539286,88.926,88.826,2.29722989]
[1645950979149,7.52218207,88.926,88.826,2.29722989]
[1645950981149,16.8875,88.93,88.83,16.2]
[1645950981350,16.8875,88.93,88.832,2.76245898]
[1645950981949,16.8875,88.93,88.833,24.7532]
[1645950982149,16.8875,88.93,88.835,2.74742805]
[1645950982751,16.8875,88.93,88.836,2.74678921]
[1645950982949,54.39449067,88.932,88.841,112.4]
[1645950983153,54.39449067,88.932,88.842,49.34525475]
[1645950983351,54.39449067,88.932,88.843,116.9]
[1645950983550,54.39449067,88.932,88.844,2.86663956]
[1645950983751,54.39449067,88.932,88.845,116.9]
[1645950983952,54.39449067,88.932,88.846,3.06007708]
[1645950984154,54.39449067,88.932,88.861,145.93565376]
[1645950984354,54.39449067,88.932,88.863,112.4]
[1645950984555,54.39449067,88.932,88.864,2.94095868]
[1645950984758,54.39449067,88.932,88.865,112.4]
[1645950984957,54.39449067,88.932,88.866,3.02764581]
[1645950985465,54.39449067,88.932,88.867,2.74678921]
[1645950986654,54.39449067,88.932,88.872,2.84166086]
[1645950987054,7.0,88.971,88.872,2.84166086]
[1645950987255,7.0,88.971,88.874,112.4]
[1645950987455,7.0,88.971,88.875,3.11189949]
[1645950987657,24.5245,88.979,88.875,3.11189949]
[1645950987873,31.5245,88.979,88.875,3.11189949]
[1645950988073,42.71221993,88.978,88.877,112.4]
[1645950988275,42.71221993,88.978,88.878,2.98836476]
[1645950988471,7.0,88.976,88.878,2.98836476]
[1645950989673,42.71221993,88.978,88.878,2.98836476]
[1645950989871,42.71221993,88.978,88.882,2.43190726]
[1645950990274,42.71221993,88.978,88.884,114.74751485]
[1645950990473,42.71221993,88.978,88.885,2.62229256]
[1645950990778,42.71221993,88.978,88.901,146.09547526]
[1645950990973,42.71221993,88.978,88.902,2.80630238]
[1645950991573,42.71221993,88.978,88.904,112.4]
[1645950991773,42.71221993,88.978,88.905,2.63308175]
[1645950991975,42.71221993,88.978,88.911,112.4]
[1645950992174,42.71221993,88.978,88.912,2.75666006]
[1645950993279,4.497,89.013,88.913,2.74678921]
[1645950993476,223.67293174,89.049,88.916,2.3188722]
[1645950993677,24.66940965,89.043,88.932,2.36641842]
[1645950993876,24.66940965,89.043,88.935,2.83079922]
[1645950994077,54.17522065,89.042,88.941,112.4]
[1645950994278,54.17522065,89.042,88.942,3.00180859]
[1645950994776,54.17522065,89.042,88.943,2.74678921]
[1645950994977,79.05351209,89.042,88.943,2.74678921]
[1645950995476,79.05351209,89.042,88.946,2.66560395]
[1645950995879,54.17522065,89.042,88.951,112.4]
[1645950996076,54.17522065,89.042,88.953,112.4]
[1645950996277,54.17522065,89.042,88.954,2.64123662]
[1645950996777,78.8446303,89.042,88.954,2.64123662]
[1645950997077,2.74678921,89.041,88.954,2.64123662]
[1645950997277,27.5660448,89.041,88.955,24.8255]
[1645950997477,24.66940965,89.04,88.956,3.10494706]
[1645950997678,24.66940965,89.04,88.957,60.29833128]
[1645950997877,49.54770109,89.04,88.958,2.89102496]
[1645950998078,49.54770109,89.04,88.958,115.29102496]
[1645950998279,49.54770109,89.04,88.959,2.75842676]
[1645950998480,0.05903585,89.039,88.959,2.75842676]
[1645950999279,24.66940965,89.04,88.959,2.75842676]
[1645950999478,54.17522065,89.042,88.959,2.75842676]
[1645950999778,54.17522065,89.042,88.96,2.74678921]
[1645950999978,54.17522065,89.042,88.959,2.75842676]
[1645951003588,54.17522065,89.042,88.96,2.74678921]
[1645951003783,54.17522065,89.042,88.962,2.48272896]
[1645951004184,54.17522065,89.042,88.963,4.494]
[1645951004583,54.17522065,89.042,88.962,2.48272896]
[1645951005384,54.17522065,89.042,88.963,2.74678921]
[1645951010889,4.494,89.082,88.966,3.05946615]
[1645951011089,7.0,89.089,88.981,112.4]
[1645951011293,7.0,89.089,88.983,112.4]
[1645951011490,7.0,89.089,88.984,2.54233292]
[1645951011891,46.41611787,89.088,88.986,115.18108656]
[1645951012092,46.41611787,89.088,88.987,3.07038874]
[1645951012494,46.41611787,89.088,88.988,112.4]
[1645951012693,46.41611787,89.088,88.989,2.52984424]
[1645951013091,1.56954202,89.086,88.989,2.52984424]
[1645951013294,1.56954202,89.086,88.983,2.31803502]
[1645951013295,4.492,89.085,88.983,2.31803502]
[1645951013491,7.23878921,89.085,88.983,2.31803502]
[1645951013692,2.74678921,89.084,88.983,2.31803502]
[1645951013895,16.8579,89.08,88.983,2.31803502]
[1645951014133,6.03159788,89.079,88.983,2.31803502]
[1645951014295,8.77838709,89.079,88.983,2.31803502]
[1645951014494,56.24608818,89.079,88.983,2.31803502]
[1645951014694,7.0,89.076,88.983,2.31803502]
[1645951014895,4.492,89.075,88.983,2.31803502]
[1645951015094,7.0,89.066,88.983,2.31803502]
[1645951015294,52.7949034,89.064,88.983,2.31803502]
[1645951015493,16.8617,89.06,88.983,2.31803502]
[1645951015693,5.91615743,89.059,88.983,2.31803502]
[1645951015893,4.16994664,89.059,88.983,2.31803502]
[1645951016097,4.16994664,89.059,88.959,2.78065444]
[1645951016396,7.0,89.041,88.932,2.39334131]
[1645951016593,16.8674,89.03,88.932,51.23474131]
[1645951016796,1.78280698,89.029,88.933,2.46451535]
[1645951016994,47.39818782,89.028,88.934,60.56408843]
[1645951017193,1.77672457,89.027,88.935,2.73350491]
[1645951017394,1.77672457,89.027,88.935,115.13350491]
[1645951017597,2.74678921,89.026,88.936,2.55005579]
[1645951019999,31.4141322,89.026,88.936,2.55005579]
[1645951020303,28.66734299,89.026,88.936,2.55005579]
[1645951020498,2.74678921,89.025,88.936,2.55005579]
[1645951023803,2.74678921,89.025,88.937,2.74678921]
[1645951024002,47.39818782,89.028,88.937,2.74678921]
[1645951025905,47.39818782,89.028,88.941,112.4]
[1645951026104,47.39818782,89.028,88.942,3.05797466]
[1645951026304,47.39818782,89.028,88.944,114.98576525]
[1645951026505,47.39818782,89.028,88.945,2.78907652]
[1645951028605,47.39818782,89.028,88.947,23.09987161]
[1645951028805,47.39818782,89.028,88.95,16.2]
[1645951029005,47.39818782,89.028,88.951,112.4]
[1645951029209,47.39818782,89.028,88.952,2.31360482]
[1645951029506,47.39818782,89.028,88.952,5.06039403]
[1645951029906,47.39818782,89.028,88.953,2.74678921]
[1645951030109,47.39818782,89.028,88.954,22.5187]
[1645951030308,47.39818782,89.028,88.955,2.69402485]
[1645951031711,23.2001,89.039,88.956,5.45845461]
[1645951031911,23.3949,89.058,88.961,112.4]
[1645951032112,23.3949,89.058,88.964,2.33663148]
[1645951032709,57.37106372,89.057,88.968,112.4]
[1645951032912,57.37106372,89.057,88.969,2.61195519]
[1645951033210,57.37106372,89.057,88.97,112.4]
[1645951033410,57.37106372,89.057,88.971,3.06583834]
[1645951035511,86.03840671,89.057,88.971,3.06583834]
[1645951037330,2.74678921,89.056,88.971,3.06583834]
[1645951037532,7.23978921,89.056,88.971,3.06583834]
[1645951037832,28.66734299,89.055,88.971,3.06583834]
[1645951038029,31.4141322,89.055,88.966,3.077551]
[1645951038231,2.74678921,89.054,88.966,3.077551]
[1645951038432,33.0637,89.05,88.966,3.077551]
[1645951038632,13.17920056,89.049,88.949,2.94123535]
[1645951038831,1.85299658,89.048,88.93,2.70237371]
[1645951039031,1.85299658,89.048,88.931,2.70399815]
[1645951039032,2.74678921,89.048,88.931,2.70399815]
[1645951039235,2.74678921,89.048,88.931,115.10399815]
[1645951039532,7.0,89.046,88.933,52.24268894]
[1645951039735,7.0,89.046,88.934,112.4]
[1645951039934,2.74678921,89.045,88.935,2.89071021]
[1645951040333,58.06504668,89.043,88.935,2.89071021]
[1645951040734,2.74678921,89.042,88.936,2.74678921]
[1645951041534,2.74678921,89.042,88.941,112.4]
[1645951041734,2.74678921,89.042,88.942,2.95548084]
[1645951042135,2.74678921,89.042,88.944,112.4]
[1645951042340,2.74678921,89.042,88.945,3.06953106]
[1645951046439,2.74678921,89.042,88.947,25.44862981]
[1645951046640,2.74678921,89.042,88.951,112.4]
[1645951047041,2.74678921,89.042,88.954,2.67204218]
[1645951047540,2.74678921,89.042,88.956,114.69740558]
[1645951047744,2.74678921,89.042,88.957,2.68053934]
[1645951050843,28.66734299,89.041,88.957,2.68053934]
[1645951051044,18.27980134,89.04,88.957,2.68053934]
[1645951051247,6.26516463,89.039,88.957,2.68053934]
[1645951051448,37.67929683,89.039,88.957,2.68053934]
[1645951051647,30.46340903,89.038,88.957,2.68053934]
[1645951051844,6.27242998,89.037,88.957,2.68053934]
[1645951052045,37.68656218,89.037,88.957,2.68053934]
[1645951052250,30.53998419,89.036,88.957,2.68053934]
[1645951052446,5.94651113,89.035,88.957,2.68053934]
[1645951052646,37.36064333,89.035,88.957,2.68053934]
[1645951052846,1.41538616,89.034,88.957,2.68053934]
[1645951053048,32.82951836,89.034,88.957,2.68053934]
[1645951053246,2.74678921,89.033,88.957,2.68053934]
[1645951055850,28.66734299,89.032,88.957,2.68053934]
[1645951056250,2.74678921,89.031,88.957,2.68053934]
[1645951057653,57.46106649,89.029,88.957,2.68053934]
[1645951058054,2.74678921,89.028,88.957,2.68053934]
[1645951064180,31.4141322,89.028,88.957,2.68053934]
[1645951064582,2.74678921,89.027,88.957,2.68053934]
[1645951066887,31.4141322,89.027,88.957,2.68053934]
[1645951067286,2.74678921,89.026,88.957,2.68053934]
[1645951067685,7.0,89.019,88.957,2.68053934]
[1645951067888,7.0,89.019,88.929,2.6397559]
[1645951068085,17.46276038,89.026,88.83,85.60618782]
[1645951068086,1.63760357,89.009,88.908,3.02547342]
[1645951068487,51.75277004,89.008,88.908,3.02547342]
[1645951068686,1.85131916,89.007,88.908,3.02547342]
[1645951068988,57.3795659,88.99,88.908,3.02547342]
[1645951069186,73.5795659,88.99,88.908,3.02547342]
[1645951069386,31.4141322,88.989,88.908,3.02547342]
[1645951069587,16.8775,88.98,88.908,3.02547342]
[1645951069787,16.8775,88.98,88.82,178.65247729]
[1645951069987,4.41161411,88.979,88.885,17.1359]
[1645951070187,48.92159494,88.979,88.867,2.3336405]
[1645951070387,57.52305915,88.965,88.88,2.70321789]
[1645951070587,57.52305915,88.965,88.882,2.81548838]
[1645951070787,58.11415697,88.964,88.882,2.81548838]
[1645951071189,2.74678921,88.963,88.882,2.81548838]
[1645951071397,29.44681398,88.963,88.882,2.81548838]
[1645951071690,16.8804,88.96,88.882,2.81548838]
[1645951072088,2.74678921,88.959,88.882,2.81548838]
[1645951072792,0.05903586,88.958,88.882,2.81548838]
[1645951073191,2.74678921,88.957,88.882,2.81548838]
[1645951075594,33.0804,88.96,88.882,2.81548838]
[1645951076194,57.52305915,88.965,88.882,2.81548838]
[1645951076795,57.52305915,88.965,88.882,122.59548838]
[1645951076999,57.52305915,88.965,88.883,5.41819105]
[1645951077398,57.52305915,88.965,88.884,2.74678921]
[1645951079000,57.52305915,88.965,88.883,2.67140184]
[1645951089843,57.52305915,88.965,88.884,2.74678921]
[1645951090040,7.0,88.996,88.884,2.74678921]
[1645951090242,28.3992,88.999,88.885,115.30233658]
[1645951090243,4.497,88.995,88.885,115.30233658]
[1645951090440,23.9012,88.999,88.891,112.4]
[1645951090641,23.9012,88.999,88.892,2.25391662]
[1645951090940,2.74678921,88.994,88.892,5.00070583]
[1645951091140,2.74678921,88.994,88.894,112.4]
[1645951091343,2.74678921,88.994,88.895,2.90408519]
[1645951091543,2.74678921,88.994,88.896,112.4]
[1645951091742,2.74678921,88.994,88.901,112.4]
[1645951091941,2.74678921,88.994,88.902,2.28984638]
[1645951094344,2.74678921,88.994,88.902,18.79094638]
[1645951094546,2.74678921,88.994,88.904,2.84612686]
[1645951094747,2.74678921,88.994,88.906,112.4]
[1645951094948,2.74678921,88.994,88.911,112.4]
[1645951095145,2.74678921,88.994,88.912,2.55746582]
[1645951096645,59.86505076,88.998,88.912,2.55746582]
[1645951104254,28.74221471,88.997,88.912,2.55746582]
[1645951104453,1.74459941,88.996,88.906,2.81441329]
[1645951104653,4.496,88.995,88.906,2.81441329]
[1645951104856,6.14950183,88.995,88.906,2.81441329]
[1645951105155,34.08218423,88.994,88.906,2.81441329]
[1645951105353,4.496,88.993,88.906,2.81441329]
[1645951105553,16.8753,88.99,88.906,2.81441329]
[1645951105754,4.497,88.989,88.906,2.81441329]
[1645951105954,11.11805443,88.989,88.906,2.81441329]
[1645951106152,2.74678921,88.988,88.906,2.81441329]
[1645951106352,4.497,88.987,88.906,2.81441329]
[1645951106554,17.79814472,88.987,88.906,2.81441329]
[1645951106753,19.6875524,88.986,88.906,2.81441329]
[1645951106954,53.3576741,88.984,88.906,2.81441329]
[1645951107154,16.2,88.98,88.906,2.81441329]
[1645951107354,4.497,88.979,88.906,2.81441329]
[1645951107755,7.24378921,88.979,88.906,2.81441329]
[1645951108054,2.74678921,88.978,88.906,2.81441329]
[1645951108257,4.497,88.977,88.906,2.81441329]
[1645951108456,2.74678921,88.978,88.906,2.81441329]
[1645951108657,2.74678921,88.976,88.906,2.81441329]
[1645951111661,28.74221471,88.976,88.906,2.81441329]
[1645951112059,2.74678921,88.975,88.906,2.81441329]
[1645951114360,7.0,88.979,88.906,2.81441329]
[1645951115383,7.0,88.979,88.909,2.30533306]
[1645951115562,53.3576741,88.984,88.909,2.30533306]
[1645951123767,25.9954255,88.983,88.909,2.30533306]
[1645951124172,7.24378921,88.982,88.909,2.30533306]
[1645951124367,16.2,88.98,88.909,2.30533306]
[1645951124774,28.74221471,88.979,88.909,2.30533306]
[1645951125168,2.74678921,88.978,88.909,2.30533306]
[1645951125369,28.74221471,88.978,88.909,2.30533306]
[1645951125769,2.74678921,88.977,88.909,2.30533306]
[1645951128973,28.74221471,88.977,88.909,2.30533306]
[1645951130174,25.9954255,88.977,88.909,2.30533306]
[1645951130390,39.44190791,88.98,88.909,2.30533306]
[1645951130575,16.2,88.98,88.909,2.30533306]
[1645951130774,53.3576741,88.984,88.909,2.30533306]
[1645951136077,2.74678921,88.983,88.909,2.30533306]
[1645951136477,16.8772,88.98,88.909,2.30533306]
[1645951136681,8.37570843,88.979,88.909,2.30533306]
[1645951136878,4.497,88.978,88.909,2.30533306]
[1645951137076,6.19055061,88.978,88.909,2.30533306]
[1645951137277,7.0,88.971,88.909,2.30533306]
[1645951137477,20.697,88.97,88.909,2.30533306]
[1645951137683,46.6924255,88.97,88.909,2.30533306]
[1645951137921,72.68112262,88.97,88.909,2.30533306]
[1645951138314,7.0,88.969,88.909,2.30533306]
[1645951138717,4.497,88.969,88.909,2.30533306]
[1645951139115,16.2,88.97,88.909,2.30533306]
[1645951140227,7.0,88.981,88.909,2.30533306]
[1645951141522,23.24190791,88.98,88.909,2.30533306]
[1645951141720,68.18412262,88.98,88.909,2.30533306]
[1645951141923,4.497,88.979,88.909,2.30533306]
[1645951142121,56.48112262,88.979,88.909,2.30533306]
[1645951142423,51.98412262,88.978,88.909,2.30533306]
[1645951142823,23.24190791,88.978,88.909,2.30533306]
[1645951143424,4.497,88.987,88.909,2.30533306]
[1645951143622,23.24190791,88.995,88.909,2.30533306]
[1645951144825,7.0,88.996,88.909,2.30533306]
[1645951144826,76.59958201,88.984,88.909,2.30533306]
[1645951148227,25.9954255,88.983,88.909,2.30533306]
[1645951148628,23.24190791,88.982,88.909,2.30533306]
[1645951149029,2.74678921,88.981,88.909,2.30533306]
[1645951149828,7.0,88.979,88.909,2.30533306]
[1645951150028,23.24190791,88.98,88.909,2.30533306]
[1645951153632,53.3576741,88.984,88.909,2.30533306]
[1645951153833,53.3576741,88.984,88.909,9.46533306]
[1645951160236,2.74678921,88.983,88.909,9.46533306]
[1645951160437,53.3576741,88.984,88.909,2.30533306]
[1645951162941,2.74678921,89.008,88.921,112.4]
[1645951163139,18.5822142,89.03,88.924,2.53291776]
[1645951163539,4.496,89.024,88.924,2.53291776]
[1645951163743,4.495,89.025,88.926,112.4]
[1645951163945,60.72232668,89.024,88.94,16.2]
[1645951164162,60.72232668,89.024,88.951,112.4]
[1645951164342,1.7155142,89.03,88.955,112.4]
[1645951164544,1.7155142,89.03,88.957,112.4]
[1645951164742,1.7155142,89.03,88.962,2.43687766]
[1645951164942,1.7155142,89.03,88.964,112.4]
[1645951165144,1.7155142,89.03,88.965,2.59752558]
[1645951165343,59.85391967,89.029,88.965,2.59752558]
[1645951165542,59.85391967,89.029,88.97,16.2]
[1645951165942,59.85391967,89.029,88.971,2.81506086]
[1645951166742,59.85391967,89.029,88.971,115.21506086]
[1645951166942,1.7155142,89.03,88.972,2.55596966]
[1645951167241,1.7155142,89.03,88.971,112.4]
[1645951168041,56.41147471,89.029,88.971,112.4]
[1645951173551,1.69495488,89.059,88.971,112.4]
[1645951173751,1.77168748,89.065,88.971,115.14678921]
[1645951174150,1.75526395,89.075,88.971,115.14678921]
[1645951174353,2.74678921,89.081,88.974,2.25529335]
[1645951174551,52.62670807,89.074,88.976,112.4]
[1645951174751,52.62670807,89.074,88.975,24.0506]
[1645951174752,52.62670807,89.074,88.993,112.4]
[1645951174951,52.62670807,89.074,88.995,112.4]
[1645951175250,52.62670807,89.074,89.001,112.4]
[1645951177057,1.73388227,89.073,89.0,16.2]
[1645951179675,1.73388227,89.073,88.994,47.633]
[1645951180173,1.73388227,89.073,88.995,112.4]
[1645951180371,1.73388227,89.073,88.995,52.91893124]
[1645951181375,1.73388227,89.073,88.996,112.4]